bitfinex/quotes_SOLUSD_20250531
["timestamp","ask_amount","ask_price","bid_price","bid_amount"]
[1748670851305,31.15248338,154.49,154.47,2.53848853]
[1748670851306,6.4729826,154.49,154.47,2.53848853]
[1748670851508,28.61029896,154.49,154.47,2.53848853]
[1748670851707,6.4729826,154.49,154.47,2.53848853]
[1748670851905,28.61029896,154.49,154.47,2.53848853]
[1748670854012,20.63423853,154.49,154.47,2.53848853]
[1748670854214,14.16125593,154.48,154.47,2.53848853]
[1748670855530,20.63458581,154.48,154.47,2.53848853]
[1748670858299,20.77674738,154.48,154.47,2.53848853]
[1748670858503,77.4217711,154.48,154.47,2.53848853]
[1748670858706,77.56393267,154.48,154.47,2.53848853]
[1748670860030,51.04016524,154.48,154.47,2.53848853]
[1748670863102,69.6898141,154.48,154.47,2.53848853]
[1748670865847,77.5963141,154.48,154.47,2.53848853]
[1748670866548,58.94666524,154.48,154.47,2.53848853]
[1748670866748,36.80540913,154.48,154.47,2.53848853]
[1748670867937,58.94666524,154.48,154.47,2.53848853]
[1748670868434,108.44666524,154.48,154.47,2.53848853]
[1748670871939,86.30540913,154.48,154.47,2.53848853]
[1748670872127,86.28540913,154.48,154.47,2.53848853]
[1748670873622,56.23765302,154.48,154.47,2.53848853]
[1748670873829,78.37890913,154.48,154.47,2.53848853]
[1748670875643,39.01890913,154.48,154.47,2.53848853]
[1748670875845,78.37890913,154.48,154.47,2.53848853]
[1748670877934,56.23765302,154.48,154.47,2.53848853]
[1748670878242,78.37890913,154.48,154.47,2.53848853]
[1748670879941,56.23765302,154.48,154.47,2.53848853]
[1748670880133,78.37890913,154.48,154.47,2.53848853]
[1748670880453,38.87674756,154.48,154.47,2.53848853]
[1748670880824,64.73458599,154.48,154.47,2.53848853]
[1748670881335,28.61458599,154.48,154.47,2.53848853]
[1748670881736,54.61458599,154.48,154.47,2.53848853]
[1748670881939,46.63717137,154.48,154.47,2.53848853]
[1748670883956,54.60296539,154.48,154.47,2.53848853]
[1748670884347,28.60262909,154.49,154.47,2.53848853]
[1748670885643,15.15655107,154.49,154.47,2.53848853]
[1748670886331,37.28618658,154.49,154.47,2.53848853]
[1748670889251,28.60296539,154.48,154.47,2.53848853]
[1748670891548,6.47332988,154.48,154.47,2.53848853]
[1748670892774,6.47332988,154.48,154.47,2.03848853]
[1748670899952,28.60296539,154.48,154.47,2.03848853]
[1748670900765,54.74512696,154.48,154.47,2.03848853]
[1748670901084,26.0,154.45,154.37,23.79183551]
[1748670901259,22.12963551,154.42,154.37,23.79183551]
[1748670901584,22.12963551,154.41,154.37,23.79183551]
[1748670901884,22.12963551,154.43,154.39,22.12963551]
[1748670902060,169.02963551,154.44,154.39,22.12963551]
[1748670902603,28.60506126,154.43,154.39,22.12963551]
[1748670903561,6.47542575,154.43,154.39,22.12963551]
[1748670904058,175.50470224,154.44,154.4,22.12963551]
[1748670904260,146.9,154.44,154.4,22.12963551]
[1748670904753,146.9,154.44,154.41,22.12963551]
[1748670904958,146.9,154.44,154.42,22.12963551]
[1748670905376,16.55429065,154.46,154.42,22.12963551]
[1748670905585,175.50311411,154.48,154.43,22.12963551]
[1748670905883,175.50311411,154.48,154.44,22.12963551]
[1748670906079,169.02963551,154.48,154.44,22.12963551]
[1748670906283,146.9,154.48,154.44,22.12963551]
[1748670906468,153.3733907,154.48,154.44,22.12963551]
[1748670907785,146.9,154.48,154.44,22.12963551]
[1748670908159,153.37341155,154.48,154.44,22.12963551]
[1748670909181,146.9,154.48,154.45,22.12963551]
[1748670909969,37.28612281,154.49,154.45,22.12963551]
[1748670912965,22.12963551,154.48,154.44,22.12963551]
[1748670913895,14.16122413,154.48,154.44,14.16122413]
[1748670914396,14.16122413,154.48,154.44,20.63621777]
[1748670915213,29.31771143,154.49,154.44,20.63621777]
[1748670915416,22.84478162,154.49,154.45,14.16122413]
[1748670915602,29.31781153,154.49,154.45,14.16122413]
[1748670916324,29.31781153,154.49,154.44,20.63621777]
[1748670920175,29.31781153,154.49,154.41,17.70481533]
[1748670920176,29.31781153,154.49,154.45,14.16122413]
[1748670925137,8.68355749,154.49,154.47,14.16122413]
[1748670925309,161.06122413,154.52,154.48,14.16122413]
[1748670925785,161.06122413,154.52,154.48,20.63454452]
[1748670925786,146.9,154.52,154.48,20.63454452]
[1748670925988,167.53299494,154.52,154.48,14.16122413]
[1748670931186,153.37177081,154.52,154.48,14.16122413]
[1748670934904,153.37177081,154.52,154.46,1.5168]
[1748670935211,153.37177081,154.52,154.48,14.16122413]
[1748670937003,153.37177081,154.52,154.49,14.16122413]
[1748670938011,153.37177081,154.52,154.46,7.9909153]
[1748670938215,153.37177081,154.52,154.49,14.16122413]
[1748670939603,153.37177081,154.52,154.48,14.16122413]
[1748670940303,153.37177081,154.52,154.46,1.5168]
[1748670940304,167.53299494,154.52,154.46,1.5168]
[1748670940609,167.53299494,154.52,154.47,14.16122413]
[1748670941522,183.71213032,154.52,154.46,1.5168]
[1748670941725,14.16122413,154.49,154.44,24.24122413]
[1748670941923,14.16122413,154.48,154.44,24.24122413]
[1748670942102,14.16122413,154.49,154.44,14.16122413]
[1748670942291,14.16122413,154.49,154.45,14.16122413]
[1748670942497,6.47332988,154.48,154.45,14.16122413]
[1748670943311,6.4729925,154.49,154.46,14.16122413]
[1748670943828,6.47262563,154.5,154.46,14.16122413]
[1748670944028,6.47212844,154.51,154.48,14.16122413]
[1748670944918,153.37174239,154.52,154.49,14.16122413]
[1748670946010,153.37174239,154.52,154.48,14.16122413]
[1748670946225,153.37174239,154.52,154.47,14.16122413]
[1748670946226,167.53296652,154.52,154.47,14.16122413]
[1748670946823,153.37174239,154.52,154.48,14.16122413]
[1748670949999,153.37174239,154.52,154.49,14.16122413]
[1748670950518,153.37174239,154.52,154.48,14.16122413]
[1748670960728,146.9,154.52,154.48,14.16122413]
[1748670960929,153.37169643,154.52,154.49,14.16122413]
[1748670961158,15.38166198,154.53,154.49,14.16122413]
[1748670961447,8.91025198,154.53,154.5,14.16122413]
[1748670961615,165.0955,154.57,154.52,14.16122413]
[1748670961616,146.9,154.57,154.52,14.16122413]
[1748670961818,146.9,154.57,154.53,14.16122413]
[1748670962233,153.36970126,154.57,154.53,14.16122413]
[1748670963334,167.53092539,154.57,154.49,36.76498937]
[1748670963520,14.16122413,154.56,154.51,14.16122413]
[1748670964129,6.47039792,154.55,154.51,14.16122413]
[1748670964333,6.47039792,154.55,154.52,14.16122413]
[1748670966038,6.47039792,154.55,154.49,30.29224886]
[1748670966218,20.63162205,154.55,154.5,14.16122413]
[1748670966414,36.80761687,154.55,154.5,14.16122413]
[1748670966829,14.16122413,154.54,154.49,24.24122413]
[1748670967038,14.16122413,154.53,154.49,10.08]
[1748670967247,14.16122413,154.53,154.48,14.16122413]
[1748670967945,14.16122413,154.52,154.46,6.1453]
[1748670968147,14.16122413,154.52,154.48,14.16122413]
[1748670968329,6.472073,154.51,154.48,14.16122413]
[1748670969951,6.472073,154.51,154.48,22.11634007]
[1748670970143,169.01634007,154.54,154.5,22.11634007]
[1748670970347,6.47139136,154.53,154.5,22.11634007]
[1748670971447,153.37092393,154.54,154.5,22.11634007]
[1748670971750,153.37092393,154.54,154.51,22.11634007]
[1748670972152,153.37092393,154.54,154.5,22.11634007]
[1748670972527,153.37092393,154.54,154.47,18.64964886]
[1748670972732,153.37092393,154.54,154.5,22.11634007]
[1748670974056,175.487264,154.54,154.49,22.11634007]
[1748670974351,22.11634007,154.51,154.46,22.11634007]
[1748670974554,22.11634007,154.5,154.45,32.19634007]
[1748670975555,6.47291086,154.49,154.45,32.19634007]
[1748670975934,22.11634007,154.48,154.43,22.11634007]
[1748670977237,28.58925093,154.49,154.44,22.11634007]
[1748670980658,22.11634007,154.48,154.44,22.11634007]
[1748670982243,28.58925093,154.49,154.44,22.11634007]
[1748670983546,28.58925093,154.49,154.45,22.11634007]
[1748670985770,28.58925093,154.49,154.44,22.11634007]
[1748670989479,28.58925093,154.49,154.45,22.11634007]
[1748670991154,22.11634007,154.52,154.47,22.11634007]
[1748670991458,146.9,154.53,154.5,22.11634007]
[1748670991653,146.9,154.53,154.49,22.11634007]
[1748670991858,153.37139372,154.53,154.49,22.11634007]
[1748670996988,146.9,154.53,154.51,22.11634007]
[1748670997371,153.37133991,154.53,154.51,22.11634007]
[1748670998287,146.9,154.53,154.5,22.11634007]
[1748670998687,6.47096384,154.54,154.5,22.11634007]
[1748670998985,6.47096384,154.54,154.51,22.11634007]
[1748670999401,6.47048647,154.55,154.51,22.11634007]
[1748671001796,146.9,154.57,154.54,22.11634007]
[1748671002084,146.9,154.57,154.51,6.47198332]
[1748671002085,146.9,154.57,154.56,22.11634007]
[1748671002290,6.46872372,154.59,154.55,22.11634007]
[1748671002875,6.46872372,154.59,154.52,18.64964886]
[1748671003191,6.46872372,154.59,154.55,22.11634007]
[1748671005191,6.46872372,154.59,154.53,6.47091254]
[1748671005192,6.46872372,154.59,154.56,22.11634007]
[1748671006005,22.11634007,154.58,154.51,49.34]
[1748671006181,22.11634007,154.57,154.52,22.11634007]
[1748671007076,22.11634007,154.57,154.51,10.06]
[1748671007278,22.11634007,154.57,154.52,22.11634007]
[1748671007587,22.11634007,154.56,154.52,22.11634007]
[1748671008579,6.47028404,154.56,154.52,22.11634007]
[1748671009586,6.47028404,154.56,154.53,22.11634007]
[1748671010584,6.47028404,154.56,154.54,22.11634007]
[1748671010787,6.47028404,154.56,154.53,22.11634007]
[1748671011399,6.46956071,154.57,154.53,22.11634007]
[1748671012678,22.11634007,154.58,154.54,22.11634007]
[1748671013517,6.46872372,154.59,154.55,22.11634007]
[1748671014414,28.58506379,154.59,154.54,22.11634007]
[1748671017416,22.11634007,154.58,154.54,22.11634007]
[1748671019309,28.58562737,154.58,154.54,22.11634007]
[1748671019503,6.4692873,154.58,154.54,22.11634007]
[1748671020525,28.58562737,154.58,154.54,22.11634007]
[1748671020842,28.58562737,154.58,154.53,22.11634007]
[1748671021344,44.75848284,154.58,154.53,22.11634007]
[1748671021516,22.11634007,154.57,154.52,22.11634007]
[1748671023637,6.46997929,154.56,154.52,22.11634007]
[1748671024433,6.46997929,154.56,154.51,10.06]
[1748671024619,6.46997929,154.56,154.52,22.11634007]
[1748671026105,6.46997929,154.56,154.53,22.11634007]
[1748671031821,6.46956071,154.57,154.53,22.11634007]
[1748671032024,28.58590078,154.57,154.53,22.11634007]
[1748671033121,28.58590078,154.57,154.51,10.06]
[1748671033328,28.58590078,154.57,154.53,22.11634007]
[1748671036719,28.58590078,154.57,154.52,22.11634007]
[1748671038148,20.6171422,154.57,154.52,14.14758149]
[1748671042050,20.6171422,154.57,154.53,14.14758149]
[1748671042233,6.46918323,154.58,154.55,14.14758149]
[1748671042563,6.46918323,154.58,154.54,14.14758149]
[1748671042854,20.61676472,154.58,154.54,14.14758149]
[1748671043351,20.61676472,154.58,154.51,25.12159291]
[1748671043525,20.61676472,154.58,154.54,14.14758149]
[1748671044328,14.14758149,154.56,154.52,14.14758149]
[1748671044951,14.14758149,154.57,154.52,14.14758149]
[1748671045845,6.46997929,154.56,154.51,18.64964886]
[1748671046144,6.46997929,154.56,154.52,14.14758149]
[1748671047138,20.61756078,154.56,154.51,14.14758149]
[1748671047755,20.61756078,154.56,154.52,14.14758149]
[1748671048255,6.46997929,154.56,154.52,14.14758149]
[1748671052852,14.14758149,154.53,154.45,10.06]
[1748671053051,14.14758149,154.53,154.48,14.14758149]
[1748671053963,14.14758149,154.52,154.48,14.14758149]
[1748671055151,6.472073,154.51,154.47,14.14758149]
[1748671055939,6.472073,154.51,154.47,22.11925224]
[1748671058043,28.59132524,154.51,154.46,18.64964886]
[1748671058261,28.59132524,154.51,154.46,40.7689011]
[1748671060289,6.472073,154.51,154.47,22.11925224]
[1748671064972,6.47181947,154.52,154.49,22.11925224]
[1748671065455,6.47136597,154.53,154.49,22.11925224]
[1748671066460,28.59061821,154.53,154.49,22.11925224]
[1748671067263,28.59061821,154.53,154.48,18.64964886]
[1748671067452,28.59061821,154.53,154.49,22.11925224]
[1748671073765,28.59061821,154.53,154.48,18.64964886]
[1748671073969,28.59061821,154.53,154.48,40.7689011]
[1748671074980,6.47081661,154.54,154.48,40.7689011]
[1748671075178,22.11925224,154.53,154.48,40.7689011]
[1748671076078,6.47165415,154.52,154.48,22.11925224]
[1748671076283,28.59090639,154.52,154.47,22.11925224]
[1748671077275,28.59090639,154.52,154.45,10.06]
[1748671077276,22.11925224,154.51,154.45,10.06]
[1748671077475,22.11925224,154.51,154.46,22.11925224]
[1748671077679,22.11925224,154.51,154.45,10.06]
[1748671077982,14.15936645,154.5,154.45,10.06]
[1748671078192,6.47291086,154.49,154.46,14.15936645]
[1748671079383,6.47262323,154.5,154.45,10.06]
[1748671079571,6.47262323,154.5,154.46,14.15936645]
[1748671083988,20.63158743,154.51,154.46,14.15936645]
[1748671085901,6.47222098,154.51,154.47,14.15936645]
[1748671087886,20.63158743,154.51,154.46,32.80901531]
[1748671089190,6.47222098,154.51,154.47,14.15936645]
[1748671090589,20.63158743,154.51,154.46,14.15936645]
[1748671092601,14.15936645,154.5,154.45,24.21936645]
[1748671094494,6.47291086,154.49,154.45,24.21936645]
[1748671097098,14.15936645,154.47,154.41,27.6171]
[1748671097297,14.15936645,154.47,154.42,14.15936645]
[1748671098430,6.47416806,154.46,154.41,27.6171]
[1748671098610,6.47416806,154.46,154.42,14.15936645]
[1748671099234,20.63353451,154.46,154.42,14.15936645]
[1748671099434,20.63353451,154.46,154.41,15.77646645]
[1748671101609,20.63353451,154.46,154.41,14.15936645]
[1748671101943,26.0,154.43,154.32,8.0261]
[1748671102132,26.0,154.42,154.32,8.0261]
[1748671102295,14.15936645,154.39,154.33,18.64964886]
[1748671102498,6.47668393,154.4,154.34,14.15936645]
[1748671102698,6.47668393,154.4,154.35,14.15936645]
[1748671103117,46.53634515,154.41,154.36,14.15936645]
[1748671103330,60.6957116,154.41,154.37,14.15936645]
[1748671103524,46.53634515,154.41,154.37,14.15936645]
[1748671103910,68.68607215,154.41,154.37,22.149727]
[1748671104307,68.68607215,154.41,154.35,22.149727]
[1748671104308,28.62641679,154.4,154.35,22.149727]
[1748671104715,22.149727,154.4,154.35,22.149727]
[1748671105008,22.149727,154.41,154.36,22.149727]
[1748671105313,22.149727,154.4,154.35,22.149727]
[1748671105723,28.62618137,154.41,154.36,22.149727]
[1748671106507,22.149727,154.4,154.34,16.99920176]
[1748671106702,22.149727,154.4,154.35,22.149727]
[1748671106900,22.149727,154.39,154.34,32.669727]
[1748671107725,22.149727,154.37,154.34,10.52]
[1748671107907,22.149727,154.37,154.32,23.774327]
[1748671108100,22.149727,154.37,154.32,22.149727]
[1748671108300,22.149727,154.37,154.31,26.0]
[1748671108301,22.149727,154.36,154.31,26.0]
[1748671108596,22.149727,154.36,154.14,8.33333333]
[1748671108597,22.149727,154.35,154.27,6.48184177]
[1748671108799,22.149727,154.34,154.29,22.149727]
[1748671109532,6.47841347,154.36,154.29,22.149727]
[1748671109751,22.149727,154.34,154.29,22.149727]
[1748671110109,28.6290702,154.34,154.29,22.149727]
[1748671110508,22.149727,154.33,154.28,22.149727]
[1748671110706,22.149727,154.33,154.27,25.13167308]
[1748671110935,22.149727,154.33,154.28,22.149727]
[1748671111343,22.149727,154.33,154.27,6.48202422]
[1748671111550,28.62958144,154.33,154.28,22.149727]
[1748671112115,6.76268541,154.36,154.27,6.48202422]
[1748671112316,22.149727,154.34,154.29,22.149727]
[1748671112630,22.149727,154.33,154.29,22.149727]
[1748671112818,22.149727,154.34,154.29,22.149727]
[1748671113419,6.47962159,154.33,154.29,22.149727]
[1748671114026,28.62934859,154.33,154.28,22.149727]
[1748671115344,6.47962159,154.33,154.29,22.149727]
[1748671116747,22.149727,154.35,154.3,22.149727]
[1748671116925,22.149727,154.35,154.31,22.149727]
[1748671117124,28.62878769,154.35,154.31,22.149727]
[1748671119218,215.60810306,154.36,154.32,22.149727]
[1748671120044,193.45837606,154.36,154.32,22.149727]
[1748671120217,146.9,154.36,154.33,22.149727]
[1748671123618,153.37845759,154.36,154.33,22.149727]
[1748671125430,153.37845759,154.36,154.32,22.149727]
[1748671126238,175.52818459,154.36,154.3,12.0598]
[1748671126431,22.149727,154.35,154.31,22.149727]
[1748671127354,22.149727,154.35,154.3,32.669727]
[1748671128057,22.149727,154.35,154.31,22.149727]
[1748671129756,6.47920176,154.34,154.31,22.149727]
[1748671134949,6.47920176,154.34,154.3,22.149727]
[1748671141363,22.149727,154.32,154.27,10.52]
[1748671141562,22.149727,154.32,154.28,22.149727]
[1748671141944,14.19163363,154.32,154.27,24.71163363]
[1748671142344,6.48004147,154.32,154.28,14.19163363]
[1748671142547,6.48004147,154.32,154.27,10.52]
[1748671142768,39.9,154.34,154.29,14.19163363]
[1748671142940,39.9,154.34,154.28,18.64964886]
[1748671142941,6.47878198,154.35,154.3,14.19163363]
[1748671143147,20.67041561,154.35,154.3,14.19163363]
[1748671143348,14.19163363,154.34,154.29,14.19163363]
[1748671143764,6.47878198,154.35,154.3,14.19163363]
[1748671143765,20.67041561,154.35,154.3,14.19163363]
[1748671144372,20.67041561,154.35,154.3,20.67230438]
[1748671145069,20.67041561,154.35,154.3,32.84128249]
[1748671148366,14.19163363,154.31,154.26,14.19163363]
[1748671148779,30.60393695,154.35,154.27,14.19163363]
[1748671149081,14.19163363,154.33,154.27,14.19163363]
[1748671149273,14.19163363,154.32,154.27,14.19163363]
[1748671149665,14.19163363,154.32,154.26,14.19163363]
[1748671149977,6.4804614,154.31,154.26,14.19163363]
[1748671151956,6.4804614,154.31,154.25,25.13261105]
[1748671152169,28.65580418,154.31,154.26,22.17534278]
[1748671153474,16.19909426,154.33,154.27,22.17534278]
[1748671153656,22.17534278,154.32,154.27,22.17534278]
[1748671155477,6.4804614,154.31,154.27,22.17534278]
[1748671156791,28.65580418,154.31,154.25,18.64964886]
[1748671156968,28.65580418,154.31,154.24,54.31314125]
[1748671156969,28.65580418,154.31,154.26,22.17534278]
[1748671157295,44.8569577,154.31,154.24,1.6084]
[1748671157471,6.48130144,154.29,154.25,22.17534278]
[1748671157783,28.65664422,154.29,154.24,23.78374278]
[1748671158292,22.17534278,154.28,154.23,10.44]
[1748671158491,22.17534278,154.28,154.23,32.61534278]
[1748671159565,6.48214169,154.27,154.23,32.61534278]
[1748671161873,6.48214169,154.27,154.23,32.11534278]
[1748671162975,6.48130144,154.29,154.23,32.11534278]
[1748671163176,22.17534278,154.28,154.23,32.11534278]
[1748671164062,22.17534278,154.28,154.23,9.94]
[1748671164258,22.17534278,154.28,154.23,32.11534278]
[1748671164965,28.65743885,154.28,154.23,32.11534278]
[1748671166282,22.17534278,154.29,154.25,22.17534278]
[1748671166570,146.9,154.3,154.26,22.17534278]
[1748671166980,146.9,154.3,154.26,28.65781278]
[1748671167687,146.9,154.3,154.26,22.17534278]
[1748671167887,146.9,154.3,154.26,28.65789921]
[1748671168087,146.9,154.3,154.26,6.48255643]
[1748671168291,146.9,154.3,154.26,28.65789921]
[1748671168869,146.9,154.3,154.27,22.17534278]
[1748671169069,146.9,154.3,154.27,28.65738705]
[1748671170098,146.9,154.3,154.28,22.17534278]
[1748671170276,28.65547499,154.32,154.28,22.17534278]
[1748671170789,54.65513313,154.33,154.28,22.17534278]
[1748671171703,54.65513313,154.33,154.28,28.65705868]
[1748671171879,175.55471261,154.34,154.29,22.17534278]
[1748671172484,22.17534278,154.33,154.28,28.65705868]
[1748671172922,22.17534278,154.33,154.29,22.17534278]
[1748671173104,153.37936983,154.34,154.29,22.17534278]
[1748671173309,175.55471261,154.34,154.29,22.17534278]
[1748671174200,22.17534278,154.33,154.29,22.17534278]
[1748671174607,22.17534278,154.33,154.27,6.48214169]
[1748671174897,28.65514636,154.33,154.28,22.17534278]
[1748671175200,22.17534278,154.31,154.27,22.17534278]
[1748671175416,22.17534278,154.31,154.26,25.13214511]
[1748671175417,22.17534278,154.31,154.26,22.17534278]
[1748671176299,22.17534278,154.31,154.24,26.73625031]
[1748671176489,22.17534278,154.3,154.26,22.17534278]
[1748671177106,22.17534278,154.31,154.26,22.17534278]
[1748671177418,48.67885755,154.33,154.25,22.17534278]
[1748671177419,22.17534278,154.3,154.25,22.17534278]
[1748671178909,22.17534278,154.3,154.25,21.67534278]
[1748671180290,28.65653202,154.3,154.25,21.17534278]
[1748671180692,28.65593681,154.31,154.26,22.17534278]
[1748671180884,28.65554891,154.32,154.28,22.17534278]
[1748671182109,6.48020613,154.32,154.28,22.17534278]
[1748671182308,54.65500215,154.33,154.28,22.17534278]
[1748671186189,54.65500215,154.33,154.27,6.48205403]
[1748671186408,54.65500215,154.33,154.28,22.17534278]
[1748671187809,22.17534278,154.33,154.29,22.17534278]
[1748671187998,175.55468509,154.34,154.29,22.17534278]
[1748671188812,22.17534278,154.33,154.26,46.20217119]
[1748671189013,22.17534278,154.31,154.27,22.17534278]
[1748671189208,22.17534278,154.32,154.27,22.17534278]
[1748671189522,22.17534278,154.32,154.28,22.17534278]
[1748671190220,28.65559452,154.32,154.28,22.17534278]
[1748671190526,28.65559452,154.32,154.27,22.17534278]
[1748671191523,28.65559452,154.32,154.27,6.48210423]
[1748671191700,28.65559452,154.32,154.27,28.65744701]
[1748671191896,28.65559452,154.32,154.25,10.36]
[1748671192110,22.17534278,154.28,154.23,6.48368599]
[1748671192307,22.17534278,154.28,154.23,28.65902877]
[1748671192525,22.17534278,154.3,154.25,22.17534278]
[1748671192820,169.07534278,154.31,154.26,22.17534278]
[1748671193226,22.17534278,154.3,154.23,6.48368599]
[1748671193433,22.17534278,154.3,154.25,22.17534278]
[1748671193803,28.65638077,154.3,154.25,22.17534278]
[1748671194714,28.65638077,154.3,154.25,28.65829996]
[1748671196708,28.65638077,154.3,154.25,22.17534278]
[1748671199504,28.65638077,154.3,154.24,6.48314006]
[1748671199808,28.65638077,154.3,154.25,22.17534278]
[1748671200009,20.67741233,154.3,154.25,14.19637434]
[1748671200611,20.67741233,154.3,154.25,20.67931794]
[1748671200936,146.9,154.31,154.28,14.19637434]
[1748671201107,14.19637434,154.33,154.28,14.19637434]
[1748671201507,14.19637434,154.32,154.26,18.64964886]
[1748671201728,14.19637434,154.32,154.27,14.19637434]
[1748671202145,6.48130144,154.29,154.25,15.76027434]
[1748671202422,6.48130144,154.29,154.25,14.19637434]
[1748671203620,6.48130144,154.29,154.24,14.19637434]
[1748671203821,6.48130144,154.29,154.23,20.68009878]
[1748671203822,20.67767578,154.29,154.23,20.68009878]
[1748671204610,14.19637434,154.28,154.23,20.68009878]
[1748671205928,22.18701673,154.28,154.23,28.67074117]
[1748671206330,22.18701673,154.28,154.23,22.18701673]
[1748671206543,22.18701673,154.27,154.22,22.18701673]
[1748671207454,22.18701673,154.27,154.23,22.18701673]
[1748671207660,22.18701673,154.25,154.21,14.61971057]
[1748671207967,28.67002217,154.25,154.21,11.2604775]
[1748671208113,28.66974986,154.26,154.21,33.44749423]
[1748671208314,26.0,154.28,154.23,22.18701673]
[1748671208515,48.18701673,154.28,154.23,22.18701673]
[1748671208722,28.66920205,154.27,154.22,22.18701673]
[1748671210145,28.66920205,154.27,154.22,28.6712438]
[1748671211555,28.66920205,154.27,154.22,22.18701673]
[1748671211853,22.18701673,154.26,154.22,22.18701673]
[1748671212243,28.66920205,154.27,154.22,22.18701673]
[1748671214666,6.48218532,154.27,154.22,22.18701673]
[1748671214832,28.66920205,154.27,154.22,22.18701673]
[1748671216857,28.66920205,154.27,154.22,28.67116634]
[1748671217448,28.66920205,154.27,154.22,22.18701673]
[1748671218536,6.48185186,154.28,154.24,22.18701673]
[1748671218745,6.48185186,154.28,154.25,22.18701673]
[1748671220068,6.48130144,154.29,154.24,22.18701673]
[1748671220236,28.66831817,154.29,154.24,22.18701673]
[1748671220561,146.9,154.3,154.26,22.18701673]
[1748671221059,0.5,154.29,154.26,22.18701673]
[1748671221265,0.5,154.29,154.27,22.18701673]
[1748671222141,146.9,154.3,154.27,22.18701673]
[1748671222334,153.38089326,154.3,154.26,22.18701673]
[1748671222538,146.9,154.3,154.27,22.18701673]
[1748671222731,146.9,154.3,154.26,22.18701673]
[1748671222925,175.56791877,154.3,154.25,6.48262532]
[1748671223127,22.18701673,154.29,154.25,22.18701673]
[1748671223523,175.56791877,154.3,154.25,22.18701673]
[1748671224139,22.18701673,154.29,154.23,1.5379]
[1748671224462,22.18701673,154.28,154.23,23.72491673]
[1748671224676,22.18701673,154.28,154.23,22.18701673]
[1748671225950,6.48214169,154.27,154.23,22.18701673]
[1748671227250,6.48214169,154.27,154.21,11.2604775]
[1748671227451,28.66915842,154.27,154.23,22.18701673]
[1748671238091,20.68332965,154.27,154.23,14.20118796]
[1748671239588,6.48214169,154.27,154.24,14.20118796]
[1748671241296,20.68332965,154.27,154.23,14.20118796]
[1748671241775,20.68332965,154.27,154.21,7.38504564]
[1748671241776,14.20118796,154.25,154.21,0.9004775]
[1748671241973,14.20118796,154.24,154.21,0.9004775]
[1748671242193,22.68749593,154.27,154.21,0.9004775]
[1748671242194,14.20118796,154.23,154.21,0.9004775]
[1748671242893,6.48424328,154.22,154.21,0.9004775]
[1748671243099,20.68543124,154.22,154.21,0.9004775]
[1748671243893,28.69236046,154.22,154.21,0.9004775]
[1748671245478,6.48424328,154.22,154.21,0.9004775]
[1748671245681,28.69236046,154.22,154.21,0.9004775]
[1748671246484,54.69236046,154.22,154.21,0.9004775]
[1748671246683,54.9766836,154.22,154.21,0.9004775]
[1748671247988,55.4766836,154.22,154.21,0.9004775]
[1748671254673,72.48424328,154.22,154.21,0.9004775]
[1748671254885,94.69236046,154.22,154.21,0.9004775]
[1748671256402,72.48424328,154.22,154.21,0.9004775]
[1748671256600,94.69236046,154.22,154.21,0.9004775]
[1748671256800,55.19236046,154.22,154.21,0.9004775]
[1748671256989,0.5,154.22,154.21,0.9004775]
[1748671257508,22.20811718,154.25,154.21,0.9004775]
[1748671257811,94.17104591,154.26,154.21,29.59320049]
[1748671258106,10.16,154.27,154.23,22.20811718]
[1748671258829,32.36811718,154.27,154.23,22.20811718]
[1748671258990,38.85026773,154.27,154.23,22.20811718]
[1748671259397,32.36811718,154.27,154.23,22.20811718]
[1748671260592,32.36811718,154.27,154.22,6.48396528]
[1748671260791,22.20811718,154.27,154.23,22.20811718]
[1748671261097,0.5,154.26,154.23,22.20811718]
[1748671261509,22.20811718,154.27,154.23,22.20811718]
[1748671261693,26.69029937,154.27,154.23,22.20811718]
[1748671261894,20.20811718,154.27,154.23,22.20811718]
[1748671262106,146.9,154.26,154.23,22.20811718]
[1748671263423,146.9,154.26,154.22,28.69208246]
[1748671264452,153.38261843,154.26,154.22,22.20811718]
[1748671264658,146.9,154.26,154.22,22.20811718]
[1748671264827,169.10811718,154.26,154.22,22.20811718]
[1748671266231,146.9,154.26,154.22,22.20811718]
[1748671266427,26.0,154.23,154.21,0.9004775]
[1748671266628,227.52208918,154.22,154.21,0.9004775]
[1748671266854,227.52208918,154.22,154.19,2.53848853]
[1748671266855,191.54964886,154.2,154.19,2.53848853]
[1748671267060,205.55244032,154.2,154.19,2.53848853]
[1748671267355,224.20208918,154.2,154.19,2.53848853]
[1748671267782,22.20811718,154.12,154.1,11.69496429]
[1748671267971,22.20811718,154.12,154.1,8.33333333]
[1748671268564,28.69683476,154.12,154.1,8.33333333]
[1748671269993,6.48871758,154.12,154.1,8.33333333]
[1748671270195,28.69683476,154.12,154.1,8.33333333]